bitfinex/quotes_ETHUSD_20250406
["timestamp","ask_amount","ask_price","bid_price","bid_amount"]
[1743964794144,6.20768329,1627.0,1626.6,10.782]
[1743964794353,6.20768329,1627.0,1626.4,0.06146571]
[1743964794647,9.20768329,1627.0,1626.9,9.4e-07]
[1743964794845,7.86688329,1627.0,1626.9,9.4e-07]
[1743964795139,6.20768329,1627.0,1626.9,9.4e-07]
[1743964795344,16.5942427,1627.0,1626.9,9.4e-07]
[1743964795498,6.14892,1626.3,1625.7,10.788]
[1743964795704,6.14892,1626.3,1625.1,44.187]
[1743964795705,6.15048,1625.9,1625.2,1.5572]
[1743964795937,6.21072329,1626.2,1625.3,10.84952023]
[1743964796135,6.15115,1625.8,1625.3,10.788]
[1743964796313,6.15178,1625.6,1625.3,10.788]
[1743964796609,6.15009,1626.0,1625.3,10.788]
[1743964796610,6.15116,1625.8,1625.3,10.788]
[1743964796834,6.15161,1625.6,1625.2,1.5572]
[1743964797037,0.06140329,1625.5,1625.2,12.3442]
[1743964797240,0.06140329,1625.9,1625.2,12.3442]
[1743964797537,0.06140329,1625.9,1625.1,3.73037473]
[1743964797746,6.15276,1625.3,1625.1,3.73037473]
[1743964797927,6.21448329,1625.2,1625.1,3.73037473]
[1743964798130,10.71958329,1625.2,1625.1,4.73e-06]
[1743964798442,7.71958329,1625.2,1625.1,4.73e-06]
[1743964798864,6.15346,1625.1,1624.1,1.5515]
[1743964799063,0.06140329,1625.0,1624.1,1.5515]
[1743964799225,5.72735941,1624.9,1623.2,1.5515]
[1743964799568,3.0,1624.3,1623.2,1.5515]
[1743964799718,6.16013,1623.4,1622.8,29.36719129]
[1743964799920,6.16177,1623.0,1622.8,29.36719129]
[1743964800264,6.15919,1623.6,1622.1,1.5515]
[1743964800265,0.06140329,1622.9,1622.1,1.5515]
[1743964800415,3.0,1623.3,1622.1,12.3425]
[1743964800742,0.06140329,1623.2,1622.3,6.16401]
[1743964800944,10.791,1624.3,1622.1,12.3425]
[1743964800945,6.47654975,1624.4,1622.9,5.72735941]
[1743964801156,0.06140329,1624.3,1623.4,6.15975]
[1743964801462,0.06140329,1624.6,1623.7,1.5515]
[1743964801613,6.15824,1623.9,1623.2,1.5515]
[1743964801819,0.06140329,1623.8,1623.2,10.8]
[1743964802054,0.06140329,1623.9,1623.1,6.16102]
[1743964802367,0.06140329,1624.1,1623.4,1.5515]
[1743964802655,1.5051,1624.9,1623.4,1.5515]
[1743964802656,0.06140329,1624.7,1623.6,3.0]
[1743964802861,0.06140329,1624.7,1624.1,1.5515]
[1743964803024,0.06140329,1625.2,1624.8,6.15456]
[1743964803227,6.0,1626.5,1625.1,6.15345]
[1743964803228,0.06140329,1625.7,1625.1,6.15345]
[1743964803437,0.06140329,1625.7,1625.0,17.44295725]
[1743964803639,5.7895042,1625.9,1625.6,6.1512]
[1743964803856,5.7895042,1625.9,1625.7,16.95012]
[1743964804029,5.7895042,1625.9,1625.7,10.799]
[1743964804228,5.7895042,1625.9,1625.8,10.802]
[1743964804557,5.7895042,1625.9,1625.8,25.24195725]
[1743964804864,6.14652,1627.0,1625.8,31.38098798]
[1743964805028,0.06140329,1626.9,1625.8,14.42843798]
[1743964805227,0.06140329,1626.9,1625.9,10.802]
[1743964805429,6.14761,1626.7,1626.0,10.802]
[1743964805667,6.14515,1627.3,1625.5,6.15161]
[1743964805668,0.06140329,1626.6,1626.2,1.5515]
[1743964805845,0.06140329,1627.1,1626.3,6.1489]
[1743964806047,0.06140329,1627.2,1626.5,6.14817]
[1743964806246,0.06140329,1627.8,1627.1,1.5515]
[1743964806766,6.14314,1627.9,1627.1,1.5515]
[1743964807067,0.06140329,1627.8,1627.2,6.20661388]
[1743964807223,0.06140329,1628.2,1627.5,6.14431]
[1743964807568,0.06140329,1628.4,1627.9,6.14266]
[1743964807719,1.5051,1628.8,1627.9,1.5515]
[1743964807720,0.06140329,1628.7,1627.9,1.5515]
[1743964808162,6.14324,1627.9,1627.6,10.798]
[1743964808366,6.14515,1627.3,1626.8,10.798]
[1743964808564,6.14654,1627.0,1626.4,1.5515]
[1743964808861,0.06140329,1626.9,1626.4,12.3495]
[1743964809062,0.06140329,1627.1,1626.4,12.3495]
[1743964809233,0.55,1627.5,1626.5,1.23495]
[1743964809435,6.14616,1627.1,1626.4,12.3495]
[1743964809734,0.06140329,1627.0,1626.4,12.3495]
[1743964809933,0.06140329,1627.6,1626.7,6.14735]
[1743964810138,0.06140329,1627.6,1626.8,6.14683]
[1743964810435,0.06140329,1627.8,1626.9,10.797]
[1743964810633,0.06140329,1627.8,1627.0,6.14618]
[1743964810834,0.06140329,1627.8,1626.7,10.796]
[1743964810835,1.5051,1627.6,1626.7,10.796]
[1743964811164,0.06140329,1627.8,1626.9,6.14637]
[1743964811331,6.20467329,1627.8,1626.7,55.061]
[1743964811659,0.55,1627.6,1626.7,10.796]
[1743964811864,0.06140329,1627.5,1626.7,10.796]
[1743964812075,0.06140329,1627.5,1626.8,0.06146302]
[1743964812369,6.14569,1627.2,1626.6,10.796]
[1743964812663,6.82215229,1627.1,1626.6,10.796]
[1743964812831,6.82215229,1627.1,1626.1,50.41451]
[1743964812832,6.14774,1626.7,1626.1,44.265]
[1743964813032,6.14872,1626.4,1626.2,10.794]
[1743964813220,0.06140329,1626.6,1625.9,10.794]
[1743964813221,6.21032329,1626.3,1625.9,10.794]
[1743964813427,0.06140329,1626.3,1625.9,10.794]
[1743964813868,0.06140329,1626.5,1625.6,1.6297]
[1743964814068,6.14887,1626.4,1625.7,10.794]
[1743964814270,0.06140329,1626.3,1625.7,16.94518]
[1743964814455,6.14743,1626.7,1625.6,1.6297]
[1743964814456,0.06140329,1626.4,1625.6,1.6297]
[1743964814642,6.15063,1625.9,1625.4,10.793]
[1743964814966,6.15063,1625.9,1624.5,44.26]
[1743964814967,6.15157,1625.6,1624.5,10.793]
[1743964815133,0.06140329,1625.5,1624.8,6.15444]
[1743964815336,0.06140329,1625.6,1624.9,10.793]
[1743964815549,0.06140329,1625.7,1625.1,6.15346]
[1743964815831,6.151,1625.8,1625.0,1.6297]
[1743964816033,6.15186,1625.6,1625.1,10.796]
[1743964816254,0.06140329,1625.5,1625.1,10.796]
[1743964816460,1.6534,1626.6,1625.7,6.15101]
[1743964816632,0.06140329,1626.5,1625.8,10.796]
[1743964816843,6.20985329,1626.5,1625.8,10.796]
[1743964817067,0.84772862,1626.5,1625.8,10.796]
[1743964817443,6.99597862,1626.5,1625.8,10.796]
[1743964817635,0.84772862,1626.5,1625.8,10.796]
[1743964818130,6.14909,1626.3,1625.9,10.795]
[1743964818454,0.06140329,1626.2,1625.9,10.795]
[1743964818654,6.14912,1626.3,1625.9,10.795]
[1743964818857,6.15025,1626.0,1625.6,10.795]
[1743964819034,0.06140329,1625.9,1625.6,10.795]
[1743964819363,0.06140329,1626.1,1625.6,10.795]
[1743964819531,6.14862,1626.4,1625.6,10.795]
[1743964819734,0.06140329,1626.3,1625.6,16.94656]
[1743964819935,6.21035329,1626.3,1625.6,10.795]
[1743964820241,6.1502,1626.0,1625.6,10.795]
[1743964820568,6.15214,1625.5,1625.0,0.45305944]
[1743964820733,0.06140329,1625.4,1625.0,0.45305944]
[1743964820934,0.06140329,1625.5,1625.0,0.45305944]
[1743964821163,6.21358329,1625.5,1625.1,10.794]
[1743964821358,6.21338329,1625.5,1625.1,10.794]
[1743964821569,0.06140329,1625.5,1624.7,9.86394725]
[1743964821780,0.06140329,1625.8,1625.2,6.15285]
[1743964821986,0.06140329,1626.2,1625.6,6.15136]
[1743964822286,0.06140329,1626.2,1625.4,1.5748]
[1743964822287,6.1495,1626.2,1625.4,1.5748]
[1743964822431,6.21136329,1626.1,1625.4,1.5748]
[1743964822635,6.15035,1626.0,1625.5,10.794]
[1743964822831,0.06140329,1625.9,1625.5,6.23508282]
[1743964823037,6.14968,1626.1,1625.5,6.23508282]
[1743964823278,0.06140329,1626.0,1625.5,6.23508282]
[1743964823435,6.15157,1625.6,1625.5,6.23508282]
[1743964823634,0.06140329,1625.6,1625.1,10.796]
[1743964823880,0.06140329,1625.6,1624.9,1.5748]
[1743964824083,6.15197,1625.5,1625.0,10.796]
[1743964824237,0.06140329,1625.4,1624.9,1.5748]
[1743964824437,12.30661,1625.2,1624.7,10.795]
[1743964824633,0.06140329,1625.1,1624.7,10.795]
[1743964824939,0.06140329,1625.9,1625.2,6.15273]
[1743964825140,6.1493,1626.2,1625.3,10.85751207]
[1743964825371,6.15083,1625.8,1625.3,10.796]
[1743964825572,6.21108329,1626.1,1625.3,10.796]
[1743964825573,0.06140329,1625.7,1625.3,10.796]
[1743964825783,0.06140329,1625.8,1625.3,10.796]
[1743964825944,6.14912,1626.3,1625.5,1.5748]
[1743964826159,0.06140329,1626.2,1625.5,7.72656]
[1743964826476,0.06140329,1626.2,1625.5,1.5748]
[1743964826681,0.06140329,1626.5,1625.8,6.15081]
[1743964826850,0.64649404,1626.5,1625.9,10.796]
[1743964827047,5.7895042,1626.6,1626.0,1.63629313]
[1743964827284,5.7895042,1626.6,1626.2,6.14913]
[1743964827594,5.85090749,1626.6,1626.3,10.795]
[1743964828058,11.99872749,1626.6,1626.3,10.795]
[1743964828262,6.14854,1626.4,1626.3,10.795]
[1743964828459,6.20991329,1626.5,1626.3,10.795]
[1743964828671,6.14854,1626.4,1625.6,1.5748]
[1743964828887,6.14704,1626.8,1625.6,1.5748]
[1743964828888,0.06140329,1626.3,1625.7,10.794]
[1743964829200,0.06140329,1626.7,1625.9,1.5748]
[1743964829371,6.14798,1626.6,1625.9,1.5748]
[1743964829578,6.20958329,1626.5,1625.9,1.5748]
[1743964829775,0.06140329,1626.5,1625.9,1.5748]
[1743964830297,6.14819,1626.5,1625.9,1.5748]
[1743964830491,0.06140329,1626.4,1625.9,1.5748]
[1743964830860,0.06140329,1626.6,1625.9,1.5748]
[1743964831107,0.06140329,1626.6,1625.9,2.347343]
[1743964831289,6.60185598,1627.0,1625.9,2.347343]
[1743964831290,6.14872,1626.4,1626.0,10.793]
[1743964831468,6.14741,1626.7,1626.0,10.793]
[1743964831796,6.14911,1626.3,1625.7,10.793]
[1743964832355,6.14893,1626.3,1625.7,10.793]
[1743964832524,6.15167,1625.6,1625.2,10.792]
[1743964832661,0.3581495,1625.5,1625.3,0.0615239]
[1743964832860,8.35277072,1626.2,1625.2,10.792]
[1743964832861,6.15043,1625.9,1625.2,10.792]
[1743964833098,6.15162,1625.6,1625.2,10.792]
[1743964833304,0.06140329,1625.8,1624.6,1.6091]
[1743964833305,1.69590329,1625.5,1624.6,1.6091]
[1743964833465,6.15469,1624.8,1624.2,1.6091]
[1743964833666,0.06140329,1624.7,1624.2,1.6091]
[1743964833964,0.06140329,1625.2,1624.2,1.6091]
[1743964834164,9.15384,1625.0,1624.3,10.792]
[1743964834363,9.15384,1625.0,1623.7,52.56814725]
[1743964834364,7.85022329,1624.9,1623.8,1.6091]
[1743964834607,6.15791,1624.0,1623.8,10.792]
[1743964834769,6.21833329,1624.2,1623.8,10.792]
[1743964834967,0.35339043,1623.9,1623.8,18.02959]
[1743964835197,6.15536,1624.6,1623.9,1.6091]
[1743964835365,1.6345,1624.2,1623.4,12.4001]
[1743964835566,1.6345,1624.2,1622.8,8.28914725]
[1743964835567,0.55,1623.9,1622.8,8.28914725]
[1743964835797,6.16148,1623.0,1622.7,10.791]
[1743964836004,6.16148,1623.0,1622.2,0.32009688]
[1743964836005,6.16284,1622.7,1622.2,0.32009688]
[1743964836208,0.06140329,1622.6,1621.1,7.77775]
[1743964836366,0.06140329,1622.6,1621.1,1.6091]
[1743964836367,3.0,1622.5,1621.1,1.6091]
[1743964836567,6.22525329,1622.4,1621.3,6.16766]
[1743964836807,0.37563172,1622.4,1622.0,6.16514]
[1743964837005,0.31422843,1622.4,1621.7,14.45548725]
[1743964837214,0.06140329,1622.6,1621.5,1.6091]
[1743964837397,0.31271734,1622.3,1621.8,10.797]
[1743964837598,0.55,1622.9,1621.8,10.797]
[1743964837919,3.06140329,1623.0,1621.8,6.16571]
[1743964837920,0.34679057,1622.8,1621.8,6.16571]
[1743964838084,0.34679057,1622.8,1622.4,6.16351]
[1743964838412,0.06140329,1623.4,1622.7,1.6183]
[1743964838717,0.25486802,1623.3,1623.0,6.16126]
[1743964839027,0.06140329,1623.9,1623.3,6.16008]
[1743964839172,0.06140329,1623.9,1623.4,1.67988775]
[1743964839372,0.06140329,1623.9,1622.8,10.796]
[1743964839373,6.1598,1623.5,1622.8,10.796]
[1743964839583,6.22006329,1623.8,1622.9,6.16156]
[1743964839821,0.25469567,1623.4,1623.0,6.16113]
[1743964840034,5.7895042,1624.4,1623.2,6.16034]
[1743964840326,7.72966,1624.6,1623.4,6.15991]
[1743964840327,0.06140329,1624.3,1623.4,6.15991]
[1743964840489,68.21157475,1625.0,1623.9,1.6183]
[1743964840490,0.06140329,1624.9,1623.9,1.6183]
[1743964840691,0.06140329,1624.9,1624.3,6.15632]
[1743964840989,6.15598,1624.5,1624.0,10.796]
[1743964841293,12.31581,1624.0,1623.3,10.798]
[1743964841497,0.06140329,1623.9,1623.3,10.798]
[1743964841829,6.15803,1623.9,1623.3,10.798]
[1743964842030,7.73367,1623.6,1622.9,10.798]
[1743964842232,0.06140329,1623.5,1622.9,10.798]
[1743964842441,6.15997,1623.4,1622.9,10.798]
[1743964842734,6.22105329,1623.5,1622.6,45.9353]
[1743964842933,0.06140329,1623.3,1622.7,16.96223]
[1743964843236,6.16014,1623.4,1622.7,10.8]
[1743964843391,0.06140329,1623.3,1622.7,10.8]
[1743964843596,0.06140329,1623.5,1622.7,16.96237]
[1743964843838,6.16046,1623.3,1622.6,1.6183]
[1743964844001,0.06140329,1623.2,1622.8,6.16181]
[1743964844197,0.56410505,1623.4,1622.7,10.8]
[1743964844396,0.56410505,1623.4,1622.9,6.16157]
[1743964844593,0.56410505,1623.4,1623.2,6.16065]
[1743964844800,0.24679595,1623.4,1623.3,18.57859]
[1743964845005,6.78124748,1624.1,1623.7,6.15877]
[1743964845302,6.78124748,1624.1,1624.0,9.15763]
[1743964845500,1.5743,1625.5,1624.6,6.1551]
[1743964845702,0.28391963,1625.4,1624.8,4.6183]
[1743964845905,0.22251634,1625.4,1624.9,6.21569057]
[1743964846210,0.06140329,1625.6,1625.0,10.8]
[1743964846437,0.2213216,1625.3,1625.0,10.8]
[1743964846604,6.15331,1625.2,1625.0,10.8]
[1743964846800,6.15331,1625.2,1624.0,1.6183]
[1743964846801,1.63570329,1625.1,1624.0,1.6183]
[1743964847000,1.5743,1624.6,1623.6,1.6183]
[1743964847233,6.15782,1624.0,1623.4,10.8]
[1743964847456,6.15991,1623.4,1623.1,10.8]
[1743964847654,0.06140329,1623.5,1623.3,0.5]
[1743964847834,0.06140329,1623.9,1623.3,0.5]
[1743964848035,0.06140329,1623.9,1623.4,6.15988]
[1743964848238,0.06140329,1624.1,1623.5,6.22110975]
[1743964848437,6.15864,1623.8,1623.5,0.06157975]
[1743964848722,0.06140329,1624.1,1623.6,7.77716]
[1743964849034,16.95452,1624.9,1623.6,7.77716]
[1743964849035,1.5743,1624.8,1624.1,6.15723]
[1743964849232,1.5743,1624.5,1623.3,0.5]
[1743964849432,2.1243,1624.2,1623.3,0.5]
[1743964849632,0.07700191,1624.1,1623.4,10.849]
[1743964849832,6.23337563,1624.4,1623.5,8.86241]
[1743964850034,1.5743,1624.6,1623.6,6.15915]
[1743964850035,0.0769652,1624.5,1623.6,6.15915]
[1743964850240,6.15728,1624.1,1623.5,1.6183]
[1743964850433,0.07698016,1624.0,1623.5,1.6183]
[1743964850654,6.23457601,1624.1,1623.5,1.6183]
[1743964850856,0.07697601,1624.1,1623.5,1.6183]
[1743964851187,0.07696996,1624.2,1623.5,1.6183]
[1743964851629,12.38726469,1624.7,1623.9,6.158]
[1743964851825,1.5743,1625.2,1624.2,1.6183]
[1743964852173,0.07692912,1625.1,1624.3,6.15649]
[1743964852374,1.5743,1625.6,1624.9,6.1539]
[1743964852578,6.15098,1625.8,1625.0,17.08141757]
[1743964852579,0.07690564,1625.8,1625.0,17.08141757]
[1743964852871,0.07690564,1625.8,1625.1,0.03083035]
[1743964853035,0.07689603,1625.9,1625.2,0.03082835]
[1743964853235,6.1511,1625.8,1625.0,10.897]
[1743964853435,6.84322128,1625.7,1625.0,10.897]
[1743964853630,0.69201128,1625.7,1625.1,0.03083884]
[1743964853934,0.69201128,1625.7,1624.9,12.4401]
[1743964853935,12.30338,1625.6,1624.9,12.4401]
[1743964854253,0.17285931,1625.5,1624.9,12.4401]
[1743964854453,0.17285931,1625.5,1625.4,1.5601]
[1743964854641,6.22546845,1626.4,1625.4,12.4521]
[1743964854844,0.62254685,1626.3,1625.4,12.4521]
[1743964855051,0.07686653,1626.2,1625.4,18.60427]
[1743964855257,0.07686653,1626.2,1625.4,12.4521]
[1743964855467,0.17370099,1626.1,1625.5,6.15176]
[1743964855667,0.17370099,1626.1,1625.4,18.60438]
[1743964855888,0.6323271,1626.1,1625.5,6.15191]
[1743964856068,6.22557731,1626.4,1625.8,6.15074]
[1743964856069,0.17380807,1626.0,1625.8,6.15074]
[1743964856268,0.17380807,1626.0,1625.9,26.88267725]
[1743964856479,0.07684642,1626.8,1625.9,26.88261725]
[1743964856644,0.07684642,1626.8,1626.1,6.14967]
[1743964856851,7.81448549,1626.9,1626.0,6.14985]
[1743964857081,0.15992841,1626.7,1626.0,6.14984]
[1743964857285,0.07684219,1626.7,1625.9,1.5601]
[1743964857487,6.30803755,1626.6,1626.0,10.88]
[1743964857788,0.16008755,1626.6,1626.0,10.88]
[1743964857988,0.16008755,1626.6,1625.9,1.5601]
[1743964857989,6.14843,1626.5,1625.9,1.5601]
[1743964858193,0.63853649,1626.5,1626.0,10.868]
[1743964858345,0.25049423,1626.4,1626.1,10.865]
[1743964858546,6.14968,1626.1,1626.0,10.865]
[1743964858779,0.17330339,1626.1,1626.0,10.865]
[1743964859048,6.39985719,1626.1,1626.0,10.865]
[1743964859248,6.15059,1625.9,1625.5,10.839]
[1743964859486,0.07689316,1625.8,1625.5,10.839]
[1743964859750,0.171736,1625.8,1625.5,10.839]
[1743964859952,0.171736,1625.8,1625.5,16.99066]
[1743964860191,6.14982,1626.1,1625.5,10.839]
[1743964860363,6.14857,1626.4,1625.5,10.839]
[1743964860556,0.17240263,1626.0,1625.9,1.622]
[1743964860893,0.614857,1626.4,1625.5,10.839]
[1743964860894,6.15044,1625.9,1625.5,1.622]
[1743964861049,6.15011,1626.0,1625.6,10.807]
[1743964861249,4.6084,1626.6,1625.7,6.15119]
[1743964861250,0.17125742,1625.8,1625.7,6.15119]
[1743964861494,0.07686874,1626.5,1626.2,6.14896]
[1743964861701,6.14707,1626.8,1626.3,10.832]
[1743964862002,11.9872364,1627.3,1626.4,1.65272466]
[1743964862003,0.15699117,1626.7,1626.4,1.65272466]
[1743964862163,0.15699117,1626.7,1626.4,1.622]
[1743964862364,5.8417864,1627.3,1626.5,6.14817]
[1743964862574,5.8417864,1627.3,1627.2,7.65352]
[1743964862793,6.1395,1628.8,1627.7,6.14363]
[1743964862992,0.39657103,1628.7,1628.4,6.14067]
[1743964863304,7.73139,1628.8,1628.5,10.849]
[1743964863475,6.13817,1629.2,1628.5,10.841]
[1743964863685,6.13873,1629.0,1628.2,1.5558]
[1743964863975,6.13971,1628.8,1628.3,10.849]
[1743964864188,6.21511653,1629.1,1628.3,6.2926284]
[1743964864402,0.62151165,1629.0,1628.3,6.2926284]
[1743964864705,0.07673663,1628.9,1628.3,6.2926284]
[1743964864898,7.72959,1629.2,1628.4,6.1408]
[1743964865089,0.07673655,1629.4,1628.4,52.55914725]
[1743964865289,0.07671829,1629.4,1628.4,52.55914725]
[1743964865475,6.21417829,1629.4,1628.5,10.906]
[1743964865676,1.5916,1629.3,1627.8,1.5558]
[1743964865892,6.13934,1628.9,1628.0,6.14248]
[1743964866225,0.0767683,1629.2,1628.4,6.14078]
[1743964866504,6.21401926,1629.4,1628.5,1.5558]
[1743964866797,6.13838,1629.1,1628.6,10.925]
[1743964867001,6.14058,1628.6,1628.2,1.5558]
[1743964867204,1.66835721,1628.9,1628.2,1.5558]
[1743964867402,6.14004,1628.7,1628.2,1.5558]
[1743964867614,6.14107,1628.4,1628.1,55.184]
[1743964867811,6.1418,1628.2,1627.7,10.917]
[1743964868110,6.14131,1628.4,1627.7,10.917]
[1743964868330,0.07677102,1628.3,1627.5,1.5558]
[1743964868477,6.1443,1627.6,1627.4,10.905]
[1743964868678,0.61443,1627.6,1626.9,17.04545]
[1743964868874,6.14344,1627.8,1626.9,17.04545]
[1743964869092,8.28914725,1629.0,1627.1,8.28914725]
[1743964869319,6.13948,1628.8,1627.6,1.5558]
[1743964869521,6.14099,1628.4,1627.6,1.5558]
[1743964869821,6.14207,1628.2,1627.4,6.14452]
[1743964870052,3.0,1627.9,1626.7,6.14725]
[1743964870255,3.0,1627.9,1627.0,6.14622]
[1743964870256,0.0768078,1627.8,1627.0,6.14622]
[1743964870555,6.13915,1628.9,1627.7,7.69943]
[1743964870761,1.5916,1629.0,1627.8,52.53714725]
[1743964870762,6.14082,1628.5,1627.8,52.53714725]
[1743964871050,0.20417757,1628.8,1628.1,6.14197]
[1743964871248,0.07677323,1628.8,1628.1,6.14192]
[1743964871450,6.13948,1628.8,1627.9,10.985]
[1743964871619,0.07674313,1628.9,1628.0,0.030564]
[1743964871620,6.14028,1628.6,1628.0,0.030564]
[1743964871809,6.21688313,1628.7,1627.9,10.985]
[1743964871810,6.14097,1628.5,1627.9,10.985]
[1743964872011,6.21777959,1628.4,1627.9,10.985]
[1743964872227,0.12776455,1628.5,1627.7,1.5558]
[1743964872450,0.12741999,1628.3,1627.8,10.968]
[1743964872653,6.14024,1628.6,1627.9,0.03055622]
[1743964872808,0.614024,1628.5,1627.9,10.957]
[1743964873013,0.614024,1628.5,1628.1,6.14208]
[1743964873014,0.12746578,1628.5,1628.1,6.14208]
[1743964873216,0.12746578,1628.5,1627.9,10.957]
[1743964873556,12.28176,1628.5,1627.9,10.957]
[1743964873713,0.12715703,1628.4,1627.9,10.957]
[1743964873909,7.73045,1629.0,1627.9,17.09957]
[1743964874250,7.11666206,1628.9,1628.0,6.14249]
[1743964874547,6.1396,1628.8,1628.2,1.5707]
[1743964874710,0.07674373,1629.2,1628.3,0.03052374]
[1743964875081,0.07674373,1629.2,1628.4,10.899]
[1743964875082,6.13986,1628.7,1628.4,10.899]
[1743964875438,6.14058,1628.6,1628.2,1.5707]
[1743964875647,6.26277718,1628.6,1628.2,1.5707]
[1743964875854,6.26245718,1628.6,1628.2,1.5707]
[1743964876370,6.14117,1628.4,1627.9,12.4437]
[1743964876871,6.26329152,1628.3,1627.9,1.5707]
[1743964877078,0.12189152,1628.3,1628.0,10.858]
[1743964877377,6.14039,1628.6,1628.0,10.858]
[1743964877671,7.77462924,1628.9,1628.1,6.14196]
[1743964877883,6.13877,1629.0,1628.0,10.858]
[1743964878061,6.13837,1629.1,1628.0,10.858]
[1743964878062,6.14064,1628.5,1628.0,10.858]
[1743964878260,6.14164,1628.3,1628.0,10.858]
[1743964878466,6.1419,1628.2,1627.9,1.5707]
[1743964878781,0.07676967,1628.6,1627.7,10.841]
[1743964878977,6.14123,1628.4,1627.7,10.841]
[1743964879137,6.14217,1628.1,1627.7,10.841]
[1743964879339,6.1417,1628.3,1627.7,10.841]
[1743964879539,6.755133,1628.4,1627.7,16.98459]
[1743964879747,6.14101,1628.4,1627.7,10.841]
[1743964879972,0.07676358,1628.3,1627.7,10.841]
[1743964880174,6.14275,1628.0,1627.8,10.812]
[1743964880474,6.14179,1628.2,1627.8,10.812]
[1743964880683,0.614179,1628.2,1627.8,10.812]
[1743964880981,6.14244,1628.1,1627.5,1.5726]
[1743964881168,6.14252,1628.0,1627.6,10.80861386]
[1743964881365,6.14235,1628.1,1627.6,10.778]
[1743964881569,6.14329,1627.8,1627.6,10.778]
[1743964881770,6.14329,1627.8,1627.4,44.227]
[1743964881966,6.14329,1627.8,1627.5,10.776]
[1743964882168,12.28684,1627.8,1627.5,10.776]
[1743964882370,3.0,1627.9,1627.0,10.776]
[1743964882587,6.14439,1627.5,1626.4,16.92421]
[1743964882901,6.14817,1626.5,1626.4,10.776]
[1743964883192,6.14905,1626.3,1626.0,10.785]
[1743964883410,6.14728,1626.8,1626.1,0.03076319]
[1743964883565,0.07684638,1626.7,1626.0,12.02076]
[1743964883765,6.71244235,1626.6,1626.0,12.02076]
[1743964884202,6.7892944,1626.6,1626.0,12.02076]
[1743964884402,0.56448235,1626.6,1626.0,12.02076]
[1743964884704,0.56448235,1626.6,1626.1,10.80674226]
[1743964884882,0.56448235,1626.6,1626.1,11.98025023]
[1743964885087,0.56448235,1626.6,1626.2,6.14922]
[1743964885294,1.5756,1627.5,1626.6,6.14747]
[1743964885588,6.14604,1627.1,1626.7,10.779]
[1743964885789,6.14557,1627.2,1626.7,10.779]
[1743964885963,6.14608,1627.1,1626.3,7.78271]
[1743964886163,6.14557,1627.2,1626.4,23.07572]
[1743964886404,6.22160508,1627.4,1626.6,6.14749]
[1743964886587,7.72003,1627.5,1626.6,6.14749]
[1743964886588,6.14531,1627.3,1626.6,44.236]
[1743964886794,6.14575,1627.2,1626.6,44.236]
[1743964886996,6.22187508,1627.4,1626.6,50.38378]
[1743964887313,6.14368,1627.7,1626.9,1.634]
[1743964887605,0.07680386,1627.7,1627.0,10.779]
[1743964887805,0.07680386,1628.1,1627.0,12.0203]
[1743964887963,6.14206,1628.2,1627.4,6.14476]
[1743964888166,6.14206,1628.2,1627.0,12.0203]
[1743964888167,1.5756,1628.3,1627.6,7.77797]
[1743964888397,6.21782227,1628.4,1627.7,10.78]
[1743964888607,6.14155,1628.3,1627.7,10.78]
[1743964889088,12.2832,1628.3,1627.7,10.78]
[1743964889399,6.14309,1627.9,1627.3,12.414]
[1743964889597,0.07679572,1627.9,1627.4,0.03062773]
[1743964889807,9.69131,1628.4,1627.4,10.78]
[1743964889808,6.14193,1628.2,1627.4,10.78]
[1743964889980,0.0767766,1628.2,1627.4,10.78]
[1743964890617,6.14417,1627.6,1627.4,10.78]
[1743964890777,0.07680146,1627.6,1626.4,6.14839]
[1743964890977,6.14708,1626.8,1626.5,1.634]
[1743964891189,6.14749,1626.7,1626.5,10.78]
[1743964891377,6.22432735,1626.7,1626.5,10.78]
[1743964891578,6.14625,1627.1,1626.5,10.78]
[1743964891796,6.14608,1627.1,1626.5,10.78]
[1743964892063,6.14514,1627.4,1626.5,11.858]
[1743964892266,6.22196647,1627.4,1626.6,6.14757]
[1743964892466,9.14365,1627.7,1626.8,6.14676]
[1743964892467,6.14405,1627.6,1626.8,6.14676]
[1743964892671,6.14291,1627.9,1627.1,6.14555]
[1743964892912,7.73544,1628.2,1627.4,6.1445]
[1743964893114,7.81214215,1628.2,1627.2,10.778]
[1743964893415,3.42105649,1628.1,1627.2,10.778]
[1743964893580,0.07679348,1628.0,1627.2,18.0013]
[1743964893907,6.14371,1627.7,1627.0,45.8434]
[1743964894111,6.14326,1627.8,1627.0,45.8434]
[1743964894277,6.14326,1627.8,1627.1,10.778]
[1743964894606,0.0767949,1627.8,1627.1,16.42388]
[1743964894809,0.0767949,1627.8,1627.1,10.278]
[1743964895016,0.07679563,1628.0,1627.2,1.0278]
[1743964895212,7.81218308,1628.2,1627.4,6.14455]
[1743964895412,6.14156,1628.3,1627.5,1.6074]
[1743964895577,6.141,1628.4,1627.6,10.778]
[1743964895909,6.141,1628.4,1627.6,23.06559]
[1743964896115,6.14001,1628.7,1627.7,2.23999163]
[1743964896270,1.67015341,1628.9,1628.3,6.14101]
[1743964896471,5.7758717,1629.4,1628.6,6.14003]
[1743964896472,1.67014763,1629.3,1628.6,6.14003]
[1743964896668,7.80782763,1629.3,1628.7,0.03049538]
[1743964896986,7.80782763,1629.3,1628.6,6.14003]
[1743964896987,5.7758717,1629.4,1628.9,6.13891]
[1743964897186,5.7758717,1629.4,1629.0,12.3834]
[1743964897375,0.07671911,1629.3,1629.0,10.776]
[1743964897573,12.35240911,1629.3,1629.0,10.776]
[1743964897879,5.7758717,1629.4,1629.0,10.776]